bitfinex/quotes_SOLUSD_20251117
["timestamp","ask_amount","ask_price","bid_price","bid_amount"]
[1763369257267,0.69,141.53,141.5,3.37577473]
[1763369257468,0.69,141.53,141.51,5.18466461]
[1763369257668,0.69,141.53,141.5,3.37577473]
[1763369257983,0.69,141.53,141.51,5.18466461]
[1763369258184,0.69,141.53,141.5,3.37577473]
[1763369258500,0.69,141.53,141.51,5.1836717]
[1763369258705,0.69,141.53,141.5,3.37577473]
[1763369259018,0.69,141.53,141.51,5.18150772]
[1763369259182,0.69,141.53,141.5,3.37577473]
[1763369259388,0.69,141.53,141.51,5.18055505]
[1763369259564,0.69,141.53,141.49,3.37577473]
[1763369259765,0.69,141.53,141.5,5.17897129]
[1763369260073,0.69,141.53,141.5,3.37577473]
[1763369260811,0.69,141.53,141.48,7.79674206]
[1763369260812,0.69,141.53,141.49,3.37577473]
[1763369261014,0.69,141.53,141.48,3.37577473]
[1763369261513,0.69,141.53,141.49,5.17599708]
[1763369261718,0.69,141.53,141.48,3.37577473]
[1763369261884,4.06577473,141.53,141.49,5.17599708]
[1763369262079,4.06577473,141.53,141.48,3.37577473]
[1763369262286,4.06577473,141.53,141.49,5.17599708]
[1763369262591,3.37577473,141.51,141.46,26.02697473]
[1763369262996,4.06577473,141.51,141.47,5.17509024]
[1763369263198,4.06577473,141.51,141.46,26.02697473]
[1763369263399,0.69,141.51,141.47,5.17440991]
[1763369263595,0.69,141.5,141.46,26.68697473]
[1763369263901,0.69,141.5,141.47,3.37577473]
[1763369265698,104.99,141.53,141.49,3.37577473]
[1763369265903,104.3,141.53,141.5,3.37577473]
[1763369266105,104.99,141.53,141.5,3.37577473]
[1763369266500,104.99,141.53,141.49,26.68697473]
[1763369267280,104.3,141.53,141.49,26.68697473]
[1763369267502,0.69,141.52,141.49,26.02697473]
[1763369267704,0.69,141.52,141.49,22.6512]
[1763369268594,107.67577473,141.53,141.49,26.68697473]
[1763369268595,104.3,141.53,141.49,26.68697473]
[1763369268795,104.99,141.53,141.5,2.1525964]
[1763369269198,104.3,141.53,141.51,2.1525964]
[1763369269398,104.3,141.53,141.51,0.66]
[1763369269605,104.3,141.53,141.52,2.1525964]
[1763369269904,2.8425964,141.57,141.52,2.1525964]
[1763369270103,0.69,141.56,141.53,2.1525964]
[1763369270305,0.69,141.57,141.53,2.8125964]
[1763369270700,104.99,141.58,141.54,2.8125964]
[1763369271506,0.69,141.57,141.53,2.1525964]
[1763369271709,2.8425964,141.57,141.52,2.1525964]
[1763369271902,0.69,141.57,141.53,2.1525964]
[1763369272098,0.69,141.56,141.53,2.1525964]
[1763369275411,0.69,141.56,141.54,5.16967154]
[1763369275719,0.69,141.56,141.53,2.1525964]
[1763369276011,0.69,141.56,141.54,5.16971659]
[1763369276310,0.69,141.56,141.53,2.1525964]
[1763369276515,104.3,141.58,141.55,2.1525964]
[1763369276904,104.99,141.58,141.55,2.1525964]
[1763369278322,22.6512,141.56,141.52,2.1525964]
[1763369278503,24.8037964,141.56,141.53,5.17577656]
[1763369278822,0.69,141.55,141.51,2.1525964]
[1763369279714,104.3,141.58,141.53,2.1525964]
[1763369279715,106.4525964,141.58,141.53,2.1525964]
[1763369279918,0.69,141.57,141.54,2.1525964]
[1763369280419,2.1525964,141.55,141.48,2.8125964]
[1763369280743,2.1525964,141.53,141.47,21.7768127]
[1763369281031,39.5033409,141.58,141.48,0.68]
[1763369281032,0.7,141.56,141.48,0.68]
[1763369281194,0.7,141.57,141.5,2.1525964]
[1763369281395,2.1525964,141.55,141.5,2.1525964]
[1763369281906,0.7,141.54,141.5,2.1525964]
[1763369283430,2.8525964,141.54,141.49,2.8325964]
[1763369283727,0.7,141.54,141.5,2.1525964]
[1763369283926,0.7,141.53,141.5,2.1525964]
[1763369284600,0.7,141.53,141.49,0.68]
[1763369284800,0.7,141.53,141.5,2.1525964]
[1763369286222,2.1525964,141.55,141.5,2.1525964]
[1763369286543,0.1,141.68,141.54,2.1525964]
[1763369286544,0.7,141.57,141.54,2.1525964]
[1763369286729,2.8525964,141.6,141.55,2.1525964]
[1763369286917,25.5037964,141.6,141.55,2.1525964]
[1763369287120,0.7,141.59,141.55,2.8325964]
[1763369287311,0.1,141.62,141.56,2.1525964]
[1763369287516,0.7,141.61,141.57,2.1525964]
[1763369287730,2.8525964,141.61,141.56,2.8325964]
[1763369288035,2.1525964,141.59,141.54,0.68]
[1763369288332,2.8525964,141.6,141.54,25.4837964]
[1763369288628,2.1525964,141.6,141.54,25.4837964]
[1763369288932,2.8525964,141.6,141.54,25.4837964]
[1763369289115,2.8525964,141.6,141.55,2.1525964]
[1763369289735,0.7,141.59,141.55,2.8325964]
[1763369290913,2.1525964,141.58,141.53,24.8037964]
[1763369291439,0.7,141.57,141.53,25.4837964]
[1763369292422,0.7,141.57,141.53,23.3312]
[1763369292642,0.7,141.57,141.53,2.1525964]
[1763369294538,2.8525964,141.59,141.54,0.68]
[1763369294737,0.7,141.58,141.55,2.1525964]
[1763369295237,104.3,141.61,141.53,22.6512]
[1763369295538,0.7,141.6,141.56,2.1525964]
[1763369295928,2.8525964,141.6,141.55,2.1525964]
[1763369296113,2.1525964,141.59,141.54,24.8037964]
[1763369296314,0.7,141.58,141.54,24.8037964]
[1763369296531,0.7,141.58,141.54,25.4837964]
[1763369297442,0.7,141.58,141.55,2.1525964]
[1763369298442,0.7,141.58,141.53,2.1525964]
[1763369299346,2.8525964,141.58,141.52,2.1525964]
[1763369299545,104.3,141.61,141.57,2.1525964]
[1763369299746,0.67,141.59,141.54,2.1525964]
[1763369300041,2.1525964,141.57,141.51,2.1525964]
[1763369300246,2.1525964,141.57,141.5,2.8525964]
[1763369300431,0.67,141.56,141.51,2.1525964]
[1763369300829,0.67,141.56,141.52,0.7]
[1763369301146,0.67,141.56,141.52,2.8525964]
[1763369301526,23.3212,141.58,141.53,2.8525964]
[1763369301934,0.67,141.57,141.53,0.7]
[1763369302221,0.67,141.57,141.52,2.1525964]
[1763369302444,0.67,141.57,141.49,32.44002769]
[1763369302445,0.67,141.59,141.54,2.1525964]
[1763369303049,0.67,141.6,141.55,2.8525964]
[1763369303220,0.67,141.6,141.55,0.7]
[1763369303221,2.1525964,141.6,141.55,0.7]
[1763369303541,2.8225964,141.59,141.53,2.8525964]
[1763369303727,2.8225964,141.59,141.54,2.1525964]
[1763369303930,2.8225964,141.59,141.53,2.8525964]
[1763369303931,0.67,141.58,141.53,2.8525964]
[1763369304328,0.67,141.58,141.54,0.7]
[1763369304542,0.67,141.58,141.53,2.1525964]
[1763369304744,2.8225964,141.58,141.51,2.8525964]
[1763369305134,0.67,141.57,141.51,2.8525964]
[1763369305335,2.8225964,141.57,141.51,2.8525964]
[1763369305738,0.67,141.56,141.51,2.8525964]
[1763369306132,0.67,141.56,141.51,0.7]
[1763369306133,2.8225964,141.56,141.51,0.7]
[1763369306350,2.8225964,141.56,141.51,2.8525964]
[1763369306540,0.67,141.55,141.51,2.8525964]
[1763369306736,0.67,141.55,141.51,2.1525964]
[1763369306937,0.67,141.55,141.47,53.17713316]
[1763369306938,0.67,141.55,141.47,44.79537768]
[1763369307148,2.8225964,141.55,141.49,2.1525964]
[1763369307336,0.67,141.55,141.5,2.1525964]
[1763369307534,22.6512,141.56,141.51,2.1525964]
[1763369307734,0.67,141.56,141.52,2.1525964]
[1763369308050,25.4737964,141.58,141.53,2.1525964]
[1763369308232,25.4737964,141.58,141.53,21.23668283]
[1763369308427,2.8225964,141.57,141.51,2.1525964]
[1763369308739,2.1525964,141.56,141.51,2.1525964]
[1763369308934,2.8225964,141.56,141.51,2.1525964]
[1763369309154,0.67,141.55,141.47,51.16388023]
[1763369309461,2.1525964,141.54,141.49,21.93668283]
[1763369309761,2.1525964,141.54,141.49,2.8525964]
[1763369309963,2.8225964,141.55,141.5,2.8525964]
[1763369310259,0.67,141.55,141.5,2.8525964]
[1763369310460,0.67,141.55,141.51,0.7]
[1763369310776,25.4937964,141.57,141.52,2.1525964]
[1763369311064,25.4937964,141.57,141.51,0.7]
[1763369311362,23.3412,141.57,141.52,2.1525964]
[1763369311833,25.4937964,141.57,141.53,0.69]
[1763369312039,0.69,141.57,141.53,0.69]
[1763369312237,2.8425964,141.57,141.53,0.69]
[1763369312432,2.8425964,141.57,141.52,2.8425964]
[1763369312638,0.69,141.56,141.52,2.1525964]
[1763369313034,0.69,141.56,141.52,2.8425964]
[1763369313466,2.1525964,141.57,141.52,2.1525964]
[1763369313766,2.8425964,141.57,141.53,0.69]
[1763369313945,24.8037964,141.58,141.53,2.8425964]
[1763369314144,0.69,141.58,141.53,24.07777601]
[1763369314342,0.69,141.58,141.54,2.8425964]
[1763369314542,2.1525964,141.59,141.54,2.8425964]
[1763369314760,2.8425964,141.59,141.55,0.69]
[1763369315259,2.1525964,141.59,141.54,2.1525964]
[1763369315431,0.69,141.58,141.54,0.69]
[1763369316364,2.1525964,141.57,141.53,21.23517961]
[1763369316571,2.1525964,141.55,141.5,2.1525964]
[1763369316955,0.69,141.54,141.49,2.8425964]
[1763369317131,2.8425964,141.54,141.49,2.1525964]
[1763369317536,0.69,141.53,141.49,2.8425964]
[1763369317750,0.69,141.53,141.49,0.69]
[1763369318651,2.1525964,141.52,141.47,21.44417768]
[1763369318968,2.8425964,141.53,141.47,2.8425964]
[1763369319130,0.69,141.53,141.47,0.69]
[1763369319330,2.8425964,141.53,141.46,43.89389782]
[1763369319554,0.69,141.53,141.48,2.8425964]
[1763369319742,0.69,141.53,141.49,2.1525964]
[1763369320236,0.69,141.53,141.49,0.69]
[1763369320437,0.69,141.53,141.49,2.8425964]
[1763369320636,2.1525964,141.55,141.49,2.1525964]
[1763369320837,2.8425964,141.55,141.5,2.8425964]
[1763369321161,0.69,141.55,141.5,2.8425964]
[1763369321458,0.69,141.59,141.54,2.1525964]
[1763369321660,0.69,141.59,141.55,2.1525964]
[1763369322063,0.69,141.59,141.54,2.1525964]
[1763369322253,0.69,141.59,141.53,0.69]
[1763369322449,0.69,141.59,141.55,2.8309565]
[1763369323071,0.69,141.59,141.54,2.1525964]
[1763369323364,0.69,141.59,141.55,4.98375328]
[1763369323546,0.69,141.59,141.55,2.83115688]
[1763369323748,0.69,141.59,141.54,2.1525964]
[1763369323951,0.69,141.59,141.55,19.69800782]
[1763369324148,0.69,141.59,141.54,2.8425964]
[1763369324452,0.69,141.59,141.54,22.54060422]
[1763369325560,2.8425964,141.59,141.54,2.8425964]
[1763369326060,2.1525964,141.57,141.52,22.6512]
[1763369326573,0.69,141.56,141.52,23.3412]
[1763369326864,0.69,141.56,141.52,25.4937964]
[1763369328779,0.69,141.56,141.52,22.6512]
[1763369329247,0.69,141.56,141.52,26.70375176]
[1763369329444,0.69,141.56,141.51,24.59622837]
[1763369329643,0.69,141.56,141.5,26.70375176]
[1763369329870,0.69,141.56,141.51,3.36255176]
[1763369330072,0.69,141.56,141.51,4.05255176]
[1763369332700,0.69,141.56,141.52,0.69]
[1763369333053,0.69,141.58,141.53,3.36255176]
[1763369333252,3.36255176,141.6,141.54,3.36255176]
[1763369333453,3.36255176,141.6,141.55,3.36255176]
[1763369333454,0.69,141.6,141.55,3.36255176]
[1763369333658,0.69,141.6,141.55,4.05255176]
[1763369334262,0.69,141.6,141.56,3.36255176]
[1763369334672,0.1,141.62,141.57,3.36255176]
[1763369334855,0.1,141.62,141.59,3.36255176]
[1763369335365,0.1,141.62,141.58,3.36255176]
[1763369335574,0.69,141.61,141.58,3.36255176]
[1763369335762,0.69,141.61,141.58,6.72510352]
[1763369335966,0.1,141.62,141.58,6.72510352]
[1763369336167,0.79,141.62,141.58,7.41510352]
[1763369336377,4.15255176,141.62,141.58,3.36255176]
[1763369336577,4.15255176,141.62,141.56,4.05255176]
[1763369336763,0.69,141.61,141.56,8.20510352]
[1763369337291,0.69,141.61,141.56,27.49375176]
[1763369337455,4.05255176,141.61,141.56,0.69]
[1763369337664,0.69,141.61,141.56,4.05255176]
[1763369340674,4.05255176,141.61,141.56,4.05255176]
[1763369340876,3.36255176,141.59,141.53,22.6512]
[1763369341076,0.65,141.58,141.53,26.01375176]
[1763369341383,0.65,141.58,141.53,22.6512]
[1763369341685,0.65,141.58,141.53,47.90893137]
[1763369341879,0.65,141.58,141.54,3.36255176]
[1763369343678,0.65,141.58,141.53,44.54637961]
[1763369343867,0.65,141.58,141.54,3.36255176]
[1763369344066,0.65,141.58,141.54,4.02255176]
[1763369344277,0.65,141.61,141.55,4.02255176]
[1763369344481,0.1,141.62,141.6,3.36255176]
[1763369344682,0.1,141.62,141.61,3.36255176]
[1763369344873,0.1,141.63,141.61,3.36255176]
[1763369345075,0.1,141.63,141.62,4.02255176]
[1763369345271,0.1,141.65,141.63,9.78882769]
[1763369345473,0.1,141.65,141.64,3.36255176]
[1763369345796,0.75,141.71,141.64,4.02255176]
[1763369345958,0.75,141.71,141.67,3.36255176]
[1763369346789,0.75,141.71,141.67,8.90076371]
[1763369346991,0.75,141.71,141.67,9.56076371]
[1763369348087,0.1,141.71,141.67,9.56076371]
[1763369348781,0.1,141.71,141.67,19.3495914]
[1763369348971,0.1,141.71,141.7,8.90076371]
[1763369349173,0.1,141.71,141.7,9.56076371]
[1763369351315,0.1,141.71,141.7,8.90076371]
[1763369354402,0.1,141.72,141.71,9.78882769]
[1763369354580,0.1,141.72,141.71,42.0007914]
[1763369354890,0.75,141.78,141.73,32.44002769]
[1763369355093,0.1,141.78,141.75,8.90076371]
[1763369355689,0.1,141.78,141.74,0.66]
[1763369355885,0.1,141.78,141.74,9.56076371]
[1763369356286,0.75,141.78,141.74,8.90076371]
[1763369357202,0.75,141.78,141.72,2.82715482]
[1763369357203,9.65076371,141.77,141.72,8.90076371]
[1763369357388,9.65076371,141.77,141.71,8.90076371]
[1763369357389,0.75,141.77,141.71,8.90076371]
[1763369357581,9.56076371,141.76,141.71,8.90076371]
[1763369357783,9.56076371,141.76,141.7,8.90076371]
[1763369357999,9.56076371,141.75,141.7,31.55196371]
[1763369358407,0.66,141.74,141.7,31.55196371]
[1763369359498,9.56076371,141.74,141.69,29.6944749]
[1763369359698,9.56076371,141.74,141.69,8.90076371]
[1763369360008,0.66,141.73,141.69,8.90076371]
[1763369360307,0.66,141.73,141.68,8.90076371]
[1763369361674,0.66,141.73,141.69,8.90076371]
[1763369361901,9.56076371,141.75,141.7,8.90076371]
[1763369362082,8.90076371,141.73,141.68,21.54316113]
[1763369362288,0.66,141.74,141.69,8.90076371]
[1763369362598,32.21196371,141.76,141.71,8.90076371]
[1763369362906,0.66,141.75,141.72,8.90076371]
[1763369363214,0.66,141.76,141.73,8.90076371]
[1763369363506,0.1,141.77,141.73,8.90076371]
[1763369363711,0.76,141.77,141.74,8.90076371]
[1763369364215,8.90076371,141.76,141.7,22.6512]
[1763369364384,0.76,141.77,141.7,22.6512]
[1763369364385,9.56076371,141.75,141.7,31.55196371]
[1763369365007,0.66,141.74,141.69,8.90076371]
[1763369365737,0.66,141.74,141.68,20.67294071]
[1763369365900,0.66,141.74,141.69,9.60076371]
[1763369366096,0.66,141.74,141.7,8.90076371]
[1763369367110,0.66,141.74,141.69,0.7]
[1763369367111,0.76,141.77,141.71,9.60076371]
[1763369367296,0.76,141.77,141.72,8.90076371]
[1763369367498,0.76,141.77,141.68,16.84696283]
[1763369367499,9.66076371,141.77,141.68,9.78882769]
[1763369367738,8.90076371,141.75,141.69,8.90076371]
[1763369368233,0.66,141.74,141.69,8.90076371]
[1763369368599,9.56076371,141.74,141.69,8.90076371]
[1763369368799,4.01441575,141.74,141.69,3.35441575]
[1763369369024,0.1,141.77,141.67,22.6512]
[1763369369025,0.66,141.73,141.67,23.3512]
[1763369369236,0.66,141.73,141.69,3.35441575]
[1763369369435,0.66,141.74,141.69,3.35441575]
[1763369370006,0.66,141.74,141.69,4.05441575]
[1763369370823,0.66,141.74,141.69,9.59843246]
[1763369371024,0.66,141.74,141.7,0.69]
[1763369371327,0.66,141.74,141.7,8.89843246]
[1763369371498,0.66,141.74,141.7,9.58843246]
[1763369371701,0.7,141.75,141.7,9.58843246]
[1763369371911,0.7,141.75,141.69,9.78882769]
[1763369372110,8.89843246,141.74,141.68,30.43723195]
[1763369372311,8.89843246,141.74,141.68,9.58843246]
[1763369372522,0.7,141.73,141.68,9.58843246]
[1763369372732,9.59843246,141.73,141.67,22.6512]
[1763369373024,0.7,141.73,141.69,8.89843246]
[1763369373406,0.7,141.73,141.69,0.69]
[1763369373607,0.7,141.73,141.69,9.58843246]
[1763369374017,0.7,141.73,141.69,8.89843246]
[1763369374401,9.59843246,141.73,141.68,8.89843246]
[1763369374937,0.7,141.72,141.68,8.89843246]
[1763369376425,0.7,141.72,141.66,0.69]
[1763369376722,0.7,141.72,141.67,8.89843246]
[1763369377235,0.7,141.72,141.68,8.89843246]
[1763369377528,0.7,141.72,141.68,9.58843246]
[1763369377826,0.7,141.72,141.69,8.89843246]
[1763369378032,0.7,141.74,141.69,9.58843246]
[1763369378339,0.7,141.73,141.68,9.58843246]
[1763369378501,0.7,141.73,141.69,8.89843246]
[1763369379144,0.7,141.73,141.68,9.58843246]
[1763369380305,0.7,141.73,141.68,30.47260637]
[1763369380825,0.7,141.73,141.69,8.89843246]
[1763369381033,31.54963246,141.75,141.7,8.89843246]
[1763369381325,0.7,141.75,141.71,8.89843246]
[1763369381532,0.7,141.75,141.72,8.89843246]
[1763369381906,0.7,141.76,141.72,9.58843246]
[1763369382623,0.7,141.76,141.72,8.89843246]
[1763369383106,0.7,141.76,141.71,9.58843246]
[1763369384621,9.59843246,141.76,141.7,8.89843246]
[1763369385137,0.7,141.75,141.7,8.89843246]
[1763369385308,9.59843246,141.75,141.69,9.58843246]
[1763369386134,0.7,141.74,141.69,9.58843246]
[1763369386512,0.7,141.74,141.7,8.89843246]
[1763369387904,0.7,141.74,141.71,8.89843246]
[1763369388106,0.7,141.76,141.71,9.58843246]
[1763369388320,0.7,141.75,141.72,8.89843246]
[1763369388504,0.8,141.77,141.72,9.58843246]
[1763369388719,0.8,141.77,141.73,9.58843246]
[1763369388914,0.7,141.76,141.7,7.05697082]
[1763369389231,0.7,141.76,141.71,9.58843246]
[1763369389622,0.7,141.76,141.72,8.89843246]
[1763369390532,0.7,141.76,141.71,9.58843246]
[1763369390706,0.7,141.76,141.72,8.89843246]
[1763369390915,2.84590649,141.76,141.71,2.14590649]
[1763369391312,0.7,141.75,141.71,2.14590649]
[1763369393236,0.7,141.75,141.72,2.14590649]
[1763369394028,0.1,141.77,141.74,2.14590649]
[1763369394338,0.1,141.77,141.75,2.14590649]
[1763369396346,0.1,141.77,141.7,2.14590649]
[1763369396347,2.84590649,141.76,141.7,2.14590649]
[1763369396511,0.7,141.76,141.72,2.14590649]
[1763369396817,2.24590649,141.77,141.72,2.14590649]
[1763369397017,0.7,141.75,141.71,24.79710649]
[1763369398133,0.7,141.75,141.72,2.14590649]
[1763369398835,0.7,141.75,141.71,2.14590649]
[1763369399137,0.7,141.75,141.71,22.6512]
[1763369399434,0.7,141.75,141.7,2.14590649]
[1763369401026,0.7,141.75,141.71,2.14590649]
[1763369401224,104.3,141.76,141.71,0.66]
[1763369401538,104.3,141.76,141.73,2.14590649]
[1763369401539,105.0,141.76,141.73,2.14590649]
[1763369402839,105.0,141.76,141.72,2.80590649]
[1763369403222,104.3,141.76,141.72,2.80590649]
[1763369403428,0.7,141.76,141.73,2.14590649]
[1763369403928,0.7,141.76,141.74,2.14590649]
[1763369404152,0.1,141.77,141.75,2.14590649]
[1763369404334,0.1,141.77,141.76,2.14590649]
[1763369404535,0.1,141.77,141.75,2.14590649]
[1763369405748,0.1,141.77,141.76,2.14590649]
[1763369406931,0.1,141.77,141.76,2.80590649]
[1763369407444,0.1,141.77,141.76,2.14590649]
[1763369407648,0.1,141.77,141.75,0.66]
[1763369407845,0.1,141.77,141.76,2.14590649]
[1763369408358,0.1,141.77,141.76,2.80590649]
[1763369408562,0.1,141.78,141.77,22.6512]
[1763369408726,0.1,141.78,141.77,35.24593418]
[1763369409048,0.1,141.8,141.78,0.66]
[1763369409250,0.1,141.8,141.79,2.14590649]
[1763369409454,0.1,141.8,141.79,2.80590649]
[1763369412471,0.1,141.82,141.79,9.85855018]
[1763369412771,0.1,141.82,141.81,2.14590649]
[1763369413271,0.1,141.82,141.81,2.80590649]
[1763369413575,0.1,141.83,141.81,2.80590649]
[1763369413733,0.1,141.83,141.82,25.45710649]
[1763369414044,0.1,141.86,141.83,22.6512]
[1763369414233,0.1,141.86,141.84,2.14590649]
[1763369415342,0.8,141.86,141.84,2.14590649]
[1763369416247,0.8,141.86,141.81,22.6512]
[1763369416431,2.94590649,141.86,141.79,23.3112]
[1763369416632,0.8,141.86,141.8,2.14590649]
[1763369416841,0.7,141.85,141.8,2.14590649]
[1763369417056,0.7,141.85,141.79,0.66]
[1763369417260,0.7,141.85,141.8,24.79710649]
[1763369418350,0.7,141.85,141.78,22.6512]
[1763369418730,0.7,141.85,141.76,22.6512]
[1763369418936,2.14590649,141.83,141.78,2.14590649]
[1763369419441,0.7,141.82,141.78,2.14590649]
[1763369419657,2.84590649,141.82,141.77,2.14590649]
[1763369419858,0.7,141.82,141.78,2.14590649]
[1763369420033,0.7,141.82,141.8,2.14590649]
[1763369420865,0.7,141.82,141.77,0.7]
[1763369421052,0.7,141.82,141.78,2.14590649]
[1763369421253,0.7,141.82,141.77,2.14590649]
[1763369421462,2.14590649,141.81,141.75,22.6512]
[1763369421686,2.84590649,141.82,141.75,23.3512]
[1763369421846,0.7,141.81,141.77,2.14590649]
[1763369429456,0.7,141.81,141.78,2.14590649]
[1763369431346,0.7,141.81,141.79,2.14590649]
[1763369431549,0.7,141.81,141.78,2.14590649]
[1763369431743,0.7,141.81,141.79,2.14590649]
[1763369432359,0.7,141.81,141.78,2.14590649]
[1763369433161,0.7,141.81,141.77,2.14590649]
[1763369433579,0.7,141.81,141.75,23.3312]
[1763369433776,0.7,141.81,141.77,2.14590649]
[1763369434078,2.84590649,141.81,141.76,2.14590649]
[1763369434475,2.81590649,141.8,141.75,23.3312]
[1763369434788,0.67,141.79,141.76,2.14590649]
[1763369434992,0.67,141.79,141.77,2.14590649]
[1763369435864,0.67,141.79,141.76,2.14590649]
[1763369437389,0.67,141.81,141.78,2.14590649]
[1763369437556,0.67,141.8,141.77,2.14590649]
[1763369438677,0.67,141.8,141.76,2.14590649]
[1763369441693,2.81590649,141.8,141.75,25.47710649]
[1763369442080,0.67,141.79,141.76,2.14590649]
[1763369442596,0.67,141.79,141.75,24.79710649]
[1763369442892,0.67,141.79,141.75,25.47710649]
[1763369446602,0.67,141.79,141.76,2.14590649]
[1763369449614,0.67,141.79,141.75,25.47710649]
[1763369450277,0.67,141.79,141.76,2.14590649]
[1763369451077,0.67,141.79,141.75,22.6512]
[1763369451396,0.67,141.79,141.75,24.79710649]
[1763369452510,0.67,141.79,141.76,2.14590649]
[1763369452682,0.67,141.79,141.75,22.6512]
[1763369453001,0.67,141.79,141.75,26.00287102]
[1763369454402,0.67,141.79,141.75,22.6512]
[1763369454578,0.67,141.79,141.75,26.00287102]
[1763369455607,0.67,141.79,141.73,7.074]
[1763369455908,0.67,141.79,141.61,0.2]
[1763369455909,9.78882769,141.62,141.61,0.2]
[1763369456112,32.44002769,141.59,141.58,0.2]
[1763369456283,32.44002769,141.59,141.52,0.2]
[1763369456284,22.6512,141.55,141.52,0.2]
[1763369456489,8.55168711,141.54,141.52,0.2]
[1763369456686,3.35167102,141.54,141.52,0.2]
[1763369457006,3.35167102,141.53,141.52,0.2]
[1763369457307,3.35167102,141.54,141.52,0.2]
[1763369458004,3.35167102,141.56,141.52,0.88]
[1763369458208,3.35167102,141.55,141.52,0.2]
[1763369458385,3.35167102,141.54,141.52,0.2]
[1763369458899,8.92403397,141.54,141.52,0.2]
[1763369460106,8.92403397,141.55,141.52,0.2]
[1763369460303,30.16372387,141.57,141.52,0.88]
[1763369460513,8.92403397,141.57,141.52,9.80403397]
[1763369460693,8.92403397,141.57,141.53,0.69]
[1763369461194,18.02806794,141.59,141.53,9.61403397]
[1763369461812,9.10403397,141.59,141.53,9.61403397]
[1763369462004,5.20518703,141.58,141.53,9.61403397]
[1763369462411,5.38518703,141.58,141.53,8.92403397]
[1763369462709,5.38518703,141.58,141.54,0.69]
[1763369463308,5.20518703,141.58,141.54,0.69]
[1763369463985,8.92403397,141.59,141.54,0.69]
[1763369464301,5.19418528,141.58,141.54,0.69]
[1763369464702,14.11821925,141.58,141.54,0.69]
[1763369464903,8.92403397,141.58,141.54,0.69]
[1763369466105,14.10948713,141.57,141.54,0.69]
[1763369466282,14.10948713,141.57,141.52,0.2]
[1763369466283,8.92403397,141.57,141.53,0.69]
[1763369467692,113.40403397,141.58,141.53,0.69]
[1763369467893,5.17930466,141.57,141.53,0.69]
[1763369469317,5.17930466,141.56,141.53,9.61403397]
[1763369469622,113.40403397,141.58,141.53,9.61403397]
[1763369469810,5.17420975,141.57,141.54,0.69]
[1763369470402,5.17199795,141.56,141.54,0.69]
[1763369470600,113.40403397,141.58,141.54,0.69]
[1763369470913,14.09589952,141.57,141.54,0.69]
[1763369471109,5.17186555,141.56,141.54,0.69]
[1763369473520,9.62403397,141.6,141.54,26.59403397]
[1763369473704,8.92403397,141.6,141.54,26.59403397]
[1763369473899,8.92403397,141.59,141.54,17.67]
[1763369474106,8.92403397,141.59,141.55,0.69]
[1763369474422,8.92403397,141.58,141.55,0.69]
[1763369475412,8.92403397,141.57,141.55,0.69]
[1763369475794,8.92403397,141.58,141.55,0.69]
[1763369475993,8.92403397,141.59,141.55,0.69]
[1763369476615,9.62403397,141.6,141.55,0.69]
[1763369477002,0.7,141.59,141.54,16.98]
[1763369477207,8.92403397,141.57,141.54,16.98]
[1763369477405,8.92403397,141.58,141.54,16.98]
[1763369477611,9.60403397,141.58,141.54,16.98]
[1763369477805,0.68,141.57,141.54,16.98]
[1763369478403,0.68,141.59,141.54,17.68]
[1763369478596,0.68,141.58,141.54,17.68]
[1763369479932,0.68,141.58,141.54,16.98]
[1763369479933,9.60403397,141.58,141.54,16.98]
[1763369480302,9.60403397,141.57,141.54,16.98]